bitfinex/quotes_ETHUSD_20250219
["timestamp","ask_amount","ask_price","bid_price","bid_amount"]
[1739987066124,0.7786,2716.2,2715.6,7.36467]
[1739987066735,0.7786,2716.2,2715.7,3.68225]
[1739987066901,0.7786,2716.2,2715.9,3.682]
[1739987068288,0.7786,2716.2,2715.7,3.68225]
[1739987068488,0.7786,2716.2,2715.9,3.68195]
[1739987070022,0.7786,2716.2,2715.8,3.68211]
[1739987070222,0.8083,2715.8,2715.2,9.05289]
[1739987070376,0.8083,2715.8,2715.4,3.6826]
[1739987070808,0.8083,2715.8,2715.2,3.68286]
[1739987071112,0.8083,2715.8,2715.3,3.68272]
[1739987071887,0.8083,2715.8,2715.4,3.68263]
[1739987072186,0.8083,2715.8,2715.0,5.37]
[1739987072392,0.8083,2715.8,2715.3,3.68275]
[1739987072934,0.8083,2715.8,2715.4,3.68266]
[1739987073507,0.8083,2715.8,2715.0,9.89194204]
[1739987073957,0.8083,2715.8,2715.5,3.68251]
[1739987074111,0.8083,2715.8,2715.5,3.6825]
[1739987074714,0.8083,2715.8,2715.3,3.68274]
[1739987074950,1.57253141,2715.8,2715.4,3.68263]
[1739987075158,3.15206413,2715.6,2715.0,3.68311]
[1739987075313,0.8145,2715.5,2715.1,3.68301]
[1739987075514,0.8145,2715.5,2715.0,3.68311]
[1739987075741,0.8145,2715.5,2715.2,3.68294]
[1739987076325,0.8145,2715.5,2715.3,3.68276]
[1739987076525,0.8145,2715.5,2714.9,3.68334]
[1739987076844,0.8145,2715.5,2715.2,3.68292]
[1739987077366,0.8145,2715.5,2715.3,3.68283]
[1739987080649,0.8145,2715.5,2715.4,3.68269]
[1739987080862,0.8145,2715.5,2715.3,3.68282]
[1739987082242,0.8145,2715.5,2715.4,3.68269]
[1739987084402,0.8145,2715.5,2715.1,3.68303]
[1739987084561,0.8145,2715.5,2715.2,3.68293]
[1739987084895,0.8145,2715.5,2715.3,3.68273]
[1739987085188,3.15206413,2715.9,2715.5,3.6825]
[1739987085189,0.7537,2715.8,2715.5,3.6825]
[1739987087759,0.7537,2715.8,2715.5,7.36499]
[1739987088124,0.7537,2715.8,2715.6,3.68239]
[1739987088344,0.7537,2715.8,2715.7,3.68229]
[1739987088643,0.7642,2716.0,2715.9,3.68202]
[1739987090544,0.8129,2716.3,2716.2,3.68161]
[1739987090727,0.8129,2716.3,2716.1,3.68163]
[1739987091043,0.8129,2716.3,2716.1,7.36331]
[1739987091542,0.8129,2716.3,2716.1,3.68163]
[1739987093053,3.96496413,2716.3,2715.9,3.6819]
[1739987093946,3.96496413,2716.3,2716.0,3.68186]
[1739987095247,3.96496413,2716.3,2716.0,3.68178]
[1739987095451,0.8129,2716.3,2716.1,3.68174]
[1739987096564,0.8129,2716.3,2716.0,4.049958]
[1739987096737,0.8129,2716.3,2716.0,3.68178]
[1739987097258,0.8129,2716.3,2716.0,3.68187]
[1739987097414,0.8129,2716.3,2716.1,3.68174]
[1739987097606,0.8129,2716.3,2716.0,3.68187]
[1739987097813,0.8129,2716.3,2716.0,3.6818]
[1739987098344,0.8129,2716.3,2716.0,0.36818]
[1739987098547,0.8129,2716.3,2716.0,3.68186]
[1739987099012,0.8129,2716.3,2716.1,3.68165]
[1739987099212,0.8129,2716.3,2716.2,3.68161]
[1739987100154,0.7639,2716.6,2715.9,0.7699]
[1739987100355,0.7639,2716.6,2716.3,3.68136]
[1739987102429,0.7639,2716.6,2716.2,3.6816]
[1739987102430,0.8154995,2716.6,2716.2,3.6816]
[1739987102616,0.8154995,2716.6,2716.2,7.36314]
[1739987102815,0.8154995,2716.6,2716.3,3.68145]
[1739987103649,0.8154995,2716.6,2716.2,3.68159]
[1739987104012,0.8154995,2716.6,2716.3,3.68147]
[1739987104242,0.8154995,2716.6,2716.4,3.68133]
[1739987104443,0.8154995,2716.6,2715.9,4.45191]
[1739987104645,0.8154995,2716.6,2716.3,7.36276]
[1739987104844,0.8154995,2716.6,2716.0,0.445191]
[1739987104845,0.8154995,2716.6,2716.4,3.68125]
[1739987106163,0.8154995,2716.6,2716.4,3.68127]
[1739987106460,0.0515995,2716.6,2716.5,3.6812]
[1739987106817,0.0515995,2716.6,2716.5,4.417447]
[1739987109770,0.0515995,2716.6,2716.5,5.239947]
[1739987112755,0.0515995,2716.6,2716.5,4.417447]
[1739987112929,0.0515995,2716.6,2716.4,3.68127]
[1739987113345,0.7634,2716.5,2716.2,9.05147]
[1739987113545,0.7634,2716.5,2716.2,3.68159]
[1739987113878,0.7634,2716.2,2715.9,3.68201]
[1739987114336,0.7634,2716.2,2715.9,3.68192]
[1739987114545,0.8149995,2716.2,2715.9,7.36384]
[1739987115261,0.8149995,2716.2,2716.0,3.68184]
[1739987115946,0.8149995,2716.2,2715.9,3.68192]
[1739987116148,0.8149995,2716.2,2716.1,3.68174]
[1739987117496,0.0515995,2716.2,2716.1,3.68174]
[1739987117789,0.0515995,2716.2,2716.0,3.68188]
[1739987118673,0.0515995,2716.2,2716.0,7.36368]
[1739987119009,0.0515995,2716.2,2716.1,3.68174]
[1739987119960,0.0515995,2716.2,2716.1,4.29858018]
[1739987121191,9.5e-06,2716.2,2716.1,6.36111369]
[1739987122506,9.5e-06,2716.2,2716.1,14.73111369]
[1739987124596,9.5e-06,2716.2,2716.1,15.00413117]
[1739987125294,9.5e-06,2716.2,2716.1,14.45413117]
[1739987127981,9.5e-06,2716.2,2716.1,4.29858018]
[1739987128315,9.5e-06,2716.2,2716.1,3.68174]
[1739987130733,0.7680095,2716.2,2715.9,3.682]
[1739987130931,0.7680095,2716.2,2715.8,3.68205]
[1739987131086,9.5e-06,2716.2,2716.1,3.68174]
[1739987131278,0.8111095,2716.2,2716.1,3.68174]
[1739987131529,9.5e-06,2716.2,2716.1,5.176701]
[1739987131825,9.5e-06,2716.2,2715.8,3.68208]
[1739987131998,9.5e-06,2716.2,2716.0,3.68188]
[1739987132316,9.5e-06,2716.2,2716.0,3.68181]
[1739987132495,9.5e-06,2716.2,2716.0,3.68178]
[1739987132818,9.5e-06,2716.2,2716.1,3.68174]
[1739987134732,9.5e-06,2716.2,2716.0,3.68178]
[1739987135021,9.5e-06,2716.2,2716.1,3.68174]
[1739987138023,9.5e-06,2716.2,2716.1,4.418092]
[1739987140800,0.8199095,2716.2,2716.1,4.418092]
[1739987141001,0.8199095,2716.2,2716.1,3.68174]
[1739987141347,9.5e-06,2716.2,2716.1,3.68174]
[1739987144234,9.5e-06,2716.2,2715.8,3.68212]
[1739987144411,0.7987,2716.1,2715.9,3.68201]
[1739987144635,0.7987,2716.1,2715.9,3.68195]
[1739987145064,0.7987,2716.1,2715.9,7.36391]
[1739987145224,0.7987,2716.1,2715.8,3.68214]
[1739987145433,0.7987,2716.1,2715.9,3.68195]
[1739987145629,0.7987,2716.1,2715.9,3.68198]
[1739987146728,0.7987,2716.1,2715.8,7.36421]
[1739987146929,0.7987,2716.1,2715.8,3.68207]
[1739987147128,0.7987,2716.1,2715.8,7.36415]
[1739987147363,0.7987,2716.1,2715.9,3.68199]
[1739987147630,0.7987,2716.1,2715.8,3.68209]
[1739987147852,0.7987,2716.1,2716.0,3.68188]
[1739987151358,0.7987,2716.1,2715.8,3.68207]
[1739987151561,0.7987,2716.1,2715.6,3.68232]
[1739987151856,0.7987,2716.1,2715.6,7.36467]
[1739987152071,0.7987,2716.1,2715.7,3.68227]
[1739987152803,0.7987,2716.1,2715.7,3.68229]
[1739987154090,0.8125,2716.0,2715.4,3.68267]
[1739987154290,0.8125,2716.0,2715.1,7.49679]
[1739987154488,0.8125,2716.0,2715.7,3.68222]
[1739987154700,0.8125,2716.0,2715.8,3.68215]
[1739987155000,0.8125,2716.0,2715.5,3.68245]
[1739987155191,0.8125,2716.0,2715.7,3.68227]
[1739987155568,0.8125,2716.0,2715.8,3.68215]
[1739987155977,0.8125,2716.0,2715.5,4.418966]
[1739987156181,0.8125,2716.0,2715.7,7.36454]
[1739987156496,0.8125,2716.0,2715.7,3.68228]
[1739987156991,0.8125,2716.0,2715.6,3.6824]
[1739987157702,0.8125,2716.0,2715.6,3.68242]
[1739987158056,0.8125,2716.0,2715.7,3.68225]
[1739987158791,0.8125,2716.0,2715.5,3.68251]
[1739987158970,0.8125,2716.0,2715.5,3.68247]
[1739987159375,3.68188,2716.0,2715.5,3.68247]
[1739987159580,0.814,2715.9,2715.2,3.68288]
[1739987159785,0.7962,2715.8,2715.2,3.68288]
[1739987159987,0.7962,2715.7,2715.3,3.6828]
[1739987160586,0.7962,2715.7,2715.1,0.0464]
[1739987160860,0.7962,2715.7,2715.6,3.68242]
[1739987161062,0.7838,2716.0,2715.7,3.68227]
[1739987161261,0.7838,2716.0,2715.8,3.68206]
[1739987161489,0.67,2715.9,2715.8,3.68206]
[1739987161675,0.67,2715.9,2715.7,3.68227]
[1739987162095,0.67,2715.9,2715.6,3.68238]
[1739987162397,0.7838,2716.0,2715.6,3.68242]
[1739987162603,0.7838,2716.0,2715.5,3.68248]
[1739987163002,0.8312,2715.7,2715.1,0.0464]
[1739987163213,0.8312,2715.3,2715.1,0.0464]
[1739987164974,4.51404,2715.3,2715.1,0.0464]
[1739987165162,0.8312,2715.3,2715.1,0.0464]
[1739987165572,7.47136,2715.2,2715.1,0.0464]
[1739987166213,14.05136,2715.2,2715.1,0.0464]
[1739987167577,14.80555901,2715.2,2715.1,0.0464]
[1739987168594,4.45429,2714.3,2713.6,3.68507]
[1739987168786,4.498166,2714.2,2713.5,4.46972]
[1739987169019,8.182586,2714.2,2713.5,4.46972]
[1739987169329,4.498166,2714.2,2713.5,4.46972]
[1739987169493,8.182586,2714.2,2713.5,4.46972]
[1739987169816,8.182576,2714.2,2713.5,7.37042]
[1739987170020,8.182576,2714.2,2713.5,3.6852]
[1739987170219,0.7958,2713.9,2713.3,4.46997]
[1739987170385,0.7958,2713.9,2713.3,3.68547]
[1739987170791,0.7958,2713.9,2713.3,7.37094]
[1739987171035,0.7958,2713.9,2713.4,3.6853]
[1739987171235,0.7958,2713.9,2713.3,3.68547]
[1739987171439,0.7958,2713.9,2713.1,6.44654035]
[1739987171649,0.7958,2713.9,2713.3,3.68544]
[1739987171938,0.7958,2713.9,2713.4,3.68541]
[1739987172154,0.7958,2713.9,2713.4,3.68531]
[1739987172300,0.7958,2713.9,2713.4,7.37062]
[1739987172643,0.8138,2714.2,2713.1,5.37]
[1739987172846,0.8138,2714.2,2713.8,3.68475]
[1739987173133,3.68357,2714.8,2714.1,3.68446]
[1739987173134,6.1738,2714.5,2714.1,3.68446]
[1739987173493,6.1738,2714.5,2713.8,0.7696]
[1739987173698,6.1738,2714.5,2713.9,3.68466]
[1739987173926,6.1738,2714.5,2714.0,3.68459]
[1739987174115,11.45813115,2714.5,2713.9,3.68463]
[1739987174657,7.77421115,2714.5,2713.6,0.7696]
[1739987174798,6.1738,2714.5,2714.2,3.68425]
[1739987174999,0.8138,2714.5,2714.2,3.68425]
[1739987175917,0.8138,2714.5,2714.0,7.36897]
[1739987176117,0.8138,2714.5,2714.1,3.68444]
[1739987176313,1.563545,2714.5,2713.8,3.68477]
[1739987176503,1.563545,2714.5,2713.9,3.68471]
[1739987176704,1.563545,2714.5,2714.0,3.68448]
[1739987176932,0.8138,2714.5,2714.1,3.68443]
[1739987177132,0.8138,2714.5,2714.0,3.68448]
[1739987177294,4.49781,2714.5,2713.8,3.68478]
[1739987177499,4.49781,2714.5,2713.9,3.68466]
[1739987178145,3.68424,2714.3,2713.7,3.68497]
[1739987178316,0.7758,2714.2,2713.7,3.68492]
[1739987178847,3.68446,2714.1,2713.3,6.1225]
[1739987179058,3.68446,2714.1,2713.5,3.68516]
[1739987179352,0.7758,2714.0,2713.5,3.68516]
[1739987180124,0.7758,2714.0,2713.3,3.68554]
[1739987180452,0.8309,2714.3,2713.6,0.8005]
[1739987180658,0.8309,2714.3,2714.0,3.68451]
[1739987180819,0.8309,2714.3,2713.8,3.68477]
[1739987181352,0.8309,2714.3,2714.0,3.68459]
[1739987181707,0.8309,2714.3,2714.0,3.68448]
[1739987181912,0.7879,2714.7,2714.0,3.68448]
[1739987182111,0.447147,2714.6,2714.0,3.68448]
[1739987182313,0.447147,2714.6,2714.1,3.68434]
[1739987182509,0.447147,2714.6,2714.2,3.68423]
[1739987182936,0.7879,2714.7,2714.2,3.68423]
[1739987183137,0.7879,2714.7,2714.1,8.17507]
[1739987183416,0.7879,2714.7,2714.2,3.6843]
[1739987184265,4.47156,2714.7,2714.0,3.68458]
[1739987184474,0.7879,2714.5,2714.0,3.68458]
[1739987185067,0.7879,2714.5,2714.1,3.68446]
[1739987185922,0.7879,2714.5,2713.8,0.8064]
[1739987186149,0.7879,2714.5,2714.0,3.68458]
[1739987186347,4.4719,2714.5,2713.8,3.68473]
[1739987186559,0.7879,2714.5,2713.8,3.68473]
[1739987186766,4.4719,2714.5,2713.9,3.68466]
[1739987187186,4.4719,2714.5,2713.4,6.1866]
[1739987187187,0.7891,2714.2,2713.4,6.1866]
[1739987187404,0.7891,2714.2,2713.7,3.68492]
[1739987187577,0.7891,2714.2,2713.9,3.68467]
[1739987188200,0.7891,2714.2,2714.0,3.68453]
[1739987189493,0.7891,2714.2,2714.0,3.68452]
[1739987189811,0.8008,2714.5,2714.2,3.68421]
[1739987190000,0.8008,2714.5,2714.1,3.68446]
[1739987190701,1.71688,2714.5,2714.1,3.68446]
[1739987191305,1.71688,2714.5,2713.8,3.68485]
[1739987191306,4.44876,2714.4,2713.8,3.68485]
[1739987191458,4.44876,2714.4,2713.8,3.6848]
[1739987191886,0.7647,2714.4,2713.6,4.49046]
[1739987192082,0.7647,2714.4,2714.1,3.68444]
[1739987192775,0.7647,2714.4,2714.2,3.68424]
[1739987193305,0.7647,2714.4,2714.1,3.68444]
[1739987194309,0.7647,2714.4,2714.2,3.68426]
[1739987194644,0.7647,2714.4,2714.1,3.68444]
[1739987197013,1.509549,2714.4,2714.0,3.68458]
[1739987197216,1.509549,2714.4,2714.0,3.6845]
[1739987197422,0.7647,2714.4,2714.3,3.68419]
[1739987197622,0.7647,2714.4,2713.7,3.685]
[1739987197858,3.8279,2714.6,2714.1,3.6844]
[1739987198576,3.8279,2714.6,2714.1,3.68437]
[1739987198927,3.8279,2714.6,2714.1,7.36876]
[1739987199128,3.8279,2714.6,2714.1,3.68437]
[1739987199559,3.8279,2714.6,2714.2,3.6843]
[1739987200068,3.8279,2714.6,2714.1,3.68437]
[1739987200447,3.8279,2714.6,2714.1,7.36877]
[1739987200750,3.8279,2714.6,2714.1,7.36876]
[1739987200930,0.8279,2714.6,2714.2,3.68425]
[1739987201430,0.8279,2714.6,2714.1,3.68437]
[1739987201930,4.51169,2714.6,2714.1,7.36877]
[1739987202153,1.579069,2714.6,2714.3,3.68417]
[1739987202358,1.579069,2714.6,2714.4,3.68403]
[1739987202864,1.579069,2714.6,2714.3,3.68416]
[1739987204066,1.579069,2714.6,2714.2,3.6843]
[1739987204265,1.579069,2714.6,2714.3,3.68413]
[1739987204979,1.579069,2714.6,2714.2,3.68426]
[1739987205378,1.579069,2714.6,2714.3,3.68418]
[1739987206079,1.579069,2714.6,2714.4,3.68405]
[1739987206283,0.8279,2714.6,2714.4,3.68405]
[1739987206985,0.8279,2714.6,2714.2,3.68424]
[1739987207291,0.8279,2714.6,2714.3,3.68413]
[1739987207855,0.8279,2714.6,2714.4,3.684]
[1739987208059,4.42004979,2715.1,2714.5,3.68391]
[1739987208256,0.8007,2715.0,2714.3,0.7668]
[1739987208456,0.8007,2715.0,2714.7,7.36711]
[1739987208700,6.03,2715.2,2714.8,3.6835]
[1739987208997,6.03,2715.2,2715.0,3.68315]
[1739987209200,6.03,2715.2,2714.9,3.68337]
[1739987209385,6.03,2715.2,2714.9,3.68336]
[1739987209583,6.03,2715.2,2714.8,3.6834]
[1739987209775,6.03,2715.2,2714.9,3.68337]
[1739987209979,6.411348,2715.2,2714.6,3.68368]
[1739987210283,0.8104,2714.8,2714.0,4.51569]
[1739987210495,4.49394,2714.8,2714.1,3.68434]
[1739987210694,0.8154,2714.7,2714.1,3.68434]
[1739987210865,3.8154,2714.7,2714.1,3.68434]
[1739987211067,0.749894,2714.6,2714.1,3.68434]
[1739987211281,0.7782,2714.5,2714.0,3.68457]
[1739987211479,3.68399,2714.5,2713.8,3.68478]
[1739987211688,0.7888,2714.4,2714.0,3.68455]
[1739987212624,0.7888,2714.4,2714.2,3.68432]
[1739987212789,0.7888,2714.4,2714.2,3.68422]
[1739987214717,0.7888,2714.4,2713.8,3.68477]
[1739987214866,0.7888,2714.4,2713.9,3.68466]
[1739987215591,0.7888,2714.4,2714.0,3.68457]
[1739987216302,0.7888,2714.4,2714.0,3.68451]
[1739987216499,4.47288,2714.4,2713.8,7.36953]
[1739987216813,0.7888,2714.4,2713.9,3.68466]
[1739987217117,0.7888,2714.4,2713.9,3.68473]
[1739987217420,0.7888,2714.4,2713.8,3.68476]
[1739987217708,0.7888,2714.4,2713.9,3.68473]
[1739987217914,0.7888,2714.4,2714.0,3.68456]
[1739987219268,1.55074515,2714.4,2714.0,3.68456]
[1739987221510,5.23482515,2714.4,2713.8,3.68484]
[1739987221726,5.23482515,2714.4,2713.9,3.68472]
[1739987223447,4.47288,2714.4,2713.9,3.68472]
[1739987223867,0.7888,2714.4,2714.0,3.68452]
[1739987224071,0.7888,2714.4,2714.1,3.68439]
[1739987224829,0.7888,2714.4,2713.6,0.8014]
[1739987225032,0.7888,2714.4,2713.9,3.68471]
[1739987225257,3.68419,2714.3,2713.8,3.68485]
[1739987225424,0.7955,2714.2,2713.8,3.68479]
[1739987226657,3.68446,2714.1,2713.5,3.68525]
[1739987226968,4.4801,2714.0,2713.5,3.68527]
[1739987227567,0.7955,2714.0,2713.6,3.68508]
[1739987227770,0.7955,2714.0,2713.7,3.68489]
[1739987227974,5.36,2714.2,2713.9,3.68473]
[1739987229672,5.36,2714.2,2714.0,3.68459]
[1739987230024,5.36,2714.2,2713.9,3.68472]
[1739987230932,5.36,2714.2,2713.8,7.36965]
[1739987231131,0.759,2714.1,2713.6,3.68508]
[1739987231379,0.759,2714.1,2713.6,7.37016]
[1739987231686,0.759,2714.1,2713.7,3.68498]
[1739987231859,0.759,2714.1,2713.7,3.68489]
[1739987232374,0.759,2714.1,2713.9,3.68464]
[1739987232568,0.7611,2714.3,2713.9,3.68464]
[1739987232877,0.7611,2714.3,2714.0,3.68459]
[1739987233070,0.7611,2714.3,2713.8,3.6848]
[1739987233239,0.7611,2714.3,2713.8,3.68478]
[1739987233443,0.7611,2714.3,2713.9,3.68466]
[1739987235175,0.7611,2714.3,2713.8,3.68485]
[1739987235331,6.094201,2714.3,2713.8,3.68485]
[1739987236040,2.410011,2714.3,2713.8,3.68477]
[1739987236246,0.7611,2714.3,2713.9,3.68466]
[1739987238281,0.7611,2714.3,2713.7,3.6849]
[1739987238643,0.7611,2714.3,2713.9,7.36937]
[1739987239056,0.7611,2714.3,2713.8,3.68486]
[1739987239250,0.7611,2714.3,2713.9,3.68473]
[1739987239800,0.7611,2714.3,2713.9,0.736959]
[1739987239963,0.7611,2714.3,2714.1,3.68436]
[1739987240164,0.7575,2714.5,2714.1,3.68436]
[1739987240387,0.7575,2714.5,2714.2,3.68424]
[1739987240564,0.7575,2714.5,2714.1,3.68436]
[1739987240764,3.0,2714.7,2714.3,3.6841]
[1739987240967,3.7646,2714.7,2714.4,3.68404]
[1739987241171,0.67,2714.5,2714.4,3.68404]
[1739987241559,0.67,2714.5,2714.1,3.68436]
[1739987241751,3.7646,2714.7,2714.3,3.68417]
[1739987241956,5.36007815,2714.7,2714.3,3.68417]
[1739987242146,5.36007815,2714.7,2714.3,7.36822]
[1739987242395,0.7646,2714.7,2714.4,3.68405]
[1739987242608,0.7646,2714.7,2713.9,0.736959]
[1739987242773,0.7646,2714.7,2714.1,3.68435]
[1739987243308,0.7646,2714.7,2714.2,3.68426]
[1739987244209,0.7646,2714.7,2714.3,3.68416]
[1739987244985,0.7646,2714.7,2714.0,3.68459]
[1739987245175,0.7646,2714.7,2714.4,7.36797]
[1739987245377,0.7745,2714.9,2714.5,3.68389]
[1739987245612,0.67,2714.6,2714.5,3.68389]
[1739987246396,0.7745,2714.9,2714.4,3.68398]
[1739987246782,0.7745,2714.9,2714.5,3.68384]
[1739987248188,0.7745,2714.9,2714.5,7.36765]
[1739987248986,0.7745,2714.9,2714.6,3.68366]
[1739987249188,0.8177,2715.1,2714.9,3.68334]
[1739987249388,0.67,2715.0,2714.9,3.68334]
[1739987250385,3.8177,2715.4,2715.0,3.68323]
[1739987250919,7.5004,2715.4,2714.9,3.68337]
[1739987251114,7.5004,2715.4,2714.8,0.7726]
[1739987251115,3.8177,2715.4,2714.8,0.7726]
[1739987251279,0.8177,2715.4,2715.0,3.68316]
[1739987251821,0.8177,2715.4,2715.0,7.3663]
[1739987252417,0.8177,2715.4,2715.0,0.81389]
[1739987252612,0.18815155,2716.0,2714.8,3.14666154]
[1739987252613,0.8317,2716.0,2714.8,3.14666154]
[1739987252812,0.8317,2716.0,2715.6,3.68233]
[1739987253016,6.0975047,2716.2,2715.4,0.78]
[1739987253017,0.8317,2716.3,2715.8,3.68202]
[1739987253515,0.8317,2716.3,2715.8,7.3641]
[1739987253713,0.8317,2716.3,2715.8,3.68202]
[1739987254019,0.8317,2716.3,2716.0,3.68187]
[1739987254622,0.8317,2716.3,2716.0,3.68176]
[1739987254911,0.8317,2716.3,2716.1,3.68173]
[1739987255113,3.0,2716.5,2716.2,3.68161]
[1739987255314,6.1182,2716.6,2716.2,3.68161]
[1739987255315,1.60886615,2716.6,2716.2,7.36315]
[1739987255493,0.7582,2716.6,2716.2,7.36315]
[1739987256220,0.7582,2716.6,2716.4,3.68133]
[1739987256519,0.8234,2716.9,2716.4,3.68124]
[1739987256680,0.8234,2716.9,2716.5,3.68118]
[1739987256878,6.1834,2717.1,2716.6,3.68099]
[1739987257076,2.12442215,2717.1,2716.5,7.36221]
[1739987257296,2.12442215,2717.1,2716.6,3.68106]
[1739987258217,2.12442215,2717.1,2716.8,3.68077]
[1739987258413,0.8234,2717.1,2716.8,3.68077]
[1739987258836,0.8234,2717.1,2716.6,3.68102]
[1739987259208,0.8234,2717.1,2716.7,3.68093]
[1739987259517,0.8234,2717.1,2716.6,7.36201]
[1739987259918,0.8234,2717.1,2716.6,3.68099]
[1739987260223,1.573763,2717.1,2716.7,3.68091]
[1739987260917,5.36,2717.4,2716.8,4.47519]
[1739987260918,6.1352,2717.4,2716.8,4.47519]
[1739987261120,9.81523,2717.4,2716.8,0.7945]
[1739987261356,9.81523,2717.4,2716.7,3.68083]
[1739987261523,3.0,2717.3,2716.6,3.68098]
[1739987261730,6.68024,2717.3,2716.6,3.68098]
[1739987261885,8.40192137,2717.3,2716.6,3.68098]
[1739987262222,8.91021072,2717.3,2716.6,3.68098]
[1739987262526,8.91021072,2717.3,2716.6,7.36197]
[1739987262882,4.72168137,2717.3,2716.8,3.6807]
[1739987263925,8.40181137,2717.3,2716.8,3.6807]
[1739987264130,8.40181137,2717.3,2716.5,4.4756]
[1739987264288,5.13403114,2717.2,2716.6,3.68099]
[1739987264488,5.13403114,2717.2,2716.5,4.4756]
[1739987264489,1.45370114,2717.2,2716.5,4.4756]
[1739987264832,1.45370114,2717.2,2716.7,3.68092]
[1739987266005,1.45370114,2717.2,2716.7,7.36177]
[1739987266342,6.68013,2717.3,2716.8,3.68072]
[1739987266552,3.0,2717.3,2716.8,3.68072]
[1739987266755,6.68014,2717.3,2716.8,3.68072]
[1739987268306,6.68014,2717.3,2716.7,3.68092]
[1739987268885,6.68014,2717.3,2716.8,3.68067]
[1739987268886,3.0,2717.3,2716.8,3.68067]
[1739987269544,6.1352,2717.4,2717.0,7.36087]
[1739987269704,6.1352,2717.4,2717.0,3.68041]
[1739987269909,0.794,2718.3,2717.2,3.14666154]
[1739987270124,0.794,2718.3,2718.0,3.67908]
[1739987270319,0.8264,2718.5,2718.1,3.67896]
[1739987270566,0.8264,2718.5,2717.9,7.35844]
[1739987270868,0.8264,2718.5,2717.9,3.67926]
[1739987271178,1.812883,2718.5,2717.7,0.7567]
[1739987271320,1.812883,2718.5,2717.5,3.67985]
[1739987271321,3.8264,2718.4,2717.5,3.67985]
[1739987271515,3.8264,2718.4,2717.8,3.67944]
[1739987272435,3.67893,2718.2,2717.5,3.67972]
[1739987272660,3.67893,2718.2,2717.4,0.7776]
[1739987272661,3.67912,2718.1,2717.4,0.7776]
[1739987272834,5.172275,2718.0,2717.3,3.68001]
[1739987273060,4.43647,2718.0,2717.3,3.68001]
[1739987273263,0.7572,2718.0,2717.4,3.6799]
[1739987273423,0.7572,2718.0,2717.5,3.67975]
[1739987273621,0.7572,2718.0,2717.2,5.37]
[1739987273822,4.43644,2718.0,2717.3,4.29253]
[1739987274038,3.6795,2717.8,2717.3,0.61249]
[1739987274345,4.43646,2718.0,2717.1,0.7549]
[1739987274543,3.67938,2717.9,2717.2,3.68023]
[1739987274734,4.43646,2718.0,2717.2,3.68017]
[1739987274939,3.6796,2717.7,2717.1,0.7549]
[1739987275128,0.8271,2717.6,2717.0,3.68044]
[1739987275327,0.8271,2717.6,2717.2,3.68023]
[1739987275666,0.8271,2717.6,2717.2,3.68013]
[1739987275955,3.14666154,2718.2,2717.3,3.68009]
[1739987275956,0.7638,2718.0,2717.3,3.68009]
[1739987276172,0.7638,2718.0,2717.0,1.1896317]
[1739987276173,0.7638,2718.0,2717.4,3.67996]
[1739987276430,0.7638,2718.0,2717.5,3.67983]
[1739987276602,0.7638,2718.0,2717.5,4.496735]
[1739987276947,3.67893,2718.2,2717.5,4.496735]
[1739987277463,3.67907,2718.1,2717.5,4.496735]
[1739987277857,3.6788,2718.3,2717.7,3.67955]
[1739987278087,3.6788,2718.3,2717.7,4.1291455]
[1739987278299,3.67892,2718.2,2717.7,0.4496455]
[1739987278587,4.44248,2718.4,2717.8,3.67944]
[1739987278786,4.44248,2718.4,2717.7,4.1291155]
[1739987278999,3.6788,2718.3,2717.7,4.1291155]
[1739987279152,4.44248,2718.4,2717.8,0.41291155]
[1739987279356,0.7638,2718.4,2717.8,4.09226155]
[1739987279669,0.7638,2718.4,2717.9,4.49613]
[1739987280071,0.7638,2718.4,2718.0,3.67917]
[1739987280283,0.7638,2718.4,2717.9,4.49613]
[1739987280473,3.0,2718.7,2718.1,3.67902]
[1739987280474,0.7692,2718.6,2718.1,3.67902]
[1739987280805,3.67865,2718.4,2718.0,0.49090415]
[1739987281570,3.67865,2718.4,2717.6,4.46022]
[1739987281795,3.6789,2718.2,2717.5,3.67977]
[1739987282170,4.44797,2718.3,2717.4,0.7806]
[1739987282376,0.7692,2718.3,2717.7,7.35901]
[1739987282607,0.7692,2718.3,2717.8,3.67937]
[1739987282755,4.44797,2718.3,2717.4,0.7806]
[1739987282957,3.67917,2718.0,2717.4,1.763681]
[1739987283158,3.67917,2718.0,2717.4,5.443661]
[1739987283397,3.67917,2718.0,2717.4,0.983081]
[1739987283992,0.7692,2718.1,2717.5,3.67984]
[1739987284192,0.7692,2718.1,2717.5,7.35958]
[1739987284397,0.7692,2718.1,2717.5,0.90933255]
[1739987284559,3.7692,2718.3,2717.7,3.67946]
[1739987284755,3.7692,2718.3,2717.8,3.67943]
[1739987285188,3.7692,2718.3,2717.6,0.7806]
[1739987285503,3.7692,2718.3,2717.8,3.67938]
[1739987286003,0.7692,2718.3,2717.9,3.67925]
[1739987286200,3.67871,2718.4,2717.9,4.047175]
[1739987286564,0.7692,2718.5,2718.0,3.67915]
[1739987287706,9.03843,2718.6,2717.9,0.367925]
[1739987287707,5.36,2718.6,2718.2,3.67886]
[1739987288093,0.7692,2718.7,2718.2,3.67886]
[1739987288262,0.7692,2718.7,2718.3,3.67876]
[1739987288456,0.1502346,2718.8,2718.5,3.67842]
[1739987288678,0.1502346,2718.8,2718.5,3.67838]
[1739987288906,0.1502346,2718.8,2718.5,3.67842]
[1739987290711,0.1502346,2718.8,2718.5,1.6037196]
[1739987290862,0.1502346,2718.8,2718.5,0.7725196]